bitfinex/quotes_ETHUSD_20250326
["timestamp","ask_amount","ask_price","bid_price","bid_amount"]
[1742966922050,1.14551447,2056.7,2056.5,10.32369499]
[1742966922274,1.14551447,2056.7,2056.5,5.46107499]
[1742966922876,1.14551447,2056.7,2056.5,10.32370499]
[1742966922877,0.10835822,2056.6,2056.5,10.32370499]
[1742966923084,0.10835822,2056.6,2056.5,11.84234549]
[1742966923793,1.14551447,2056.9,2056.6,4.86235]
[1742966924089,1.14551447,2056.8,2056.6,4.86235]
[1742966924885,1.14551447,2056.8,2056.5,11.84234549]
[1742966926295,0.10956559,2056.7,2056.5,11.84234549]
[1742966926705,0.10956559,2056.7,2056.5,16.70479549]
[1742966926991,1.25508006,2056.7,2056.5,6.97971549]
[1742966927155,1.25508006,2056.7,2056.5,5.46107499]
[1742966927660,1.14551447,2056.6,2056.5,5.46107499]
[1742966927859,0.10887832,2056.6,2056.5,5.46107499]
[1742966928064,1.25439279,2056.6,2056.5,5.46107499]
[1742966928787,6.94138279,2056.6,2056.5,5.46107499]
[1742966928965,4.86266,2056.5,2056.3,5.46107499]
[1742966929166,1.14551447,2056.4,2056.3,5.46107499]
[1742966929367,1.25293456,2056.4,2056.3,5.46107499]
[1742966933618,6.94039456,2056.4,2056.3,5.46107499]
[1742966933827,9.94039456,2056.4,2056.3,5.46107499]
[1742966934128,11.57201861,2056.4,2056.3,5.46107499]
[1742966938922,4.86323,2056.3,2056.0,5.46107499]
[1742966939132,1.24188938,2056.2,2056.0,5.46107499]
[1742966939726,1.14551447,2056.1,2056.0,5.46107499]
[1742966939926,0.09581233,2056.1,2056.0,5.46107499]
[1742966940128,0.09581233,2056.1,2056.0,7.06055649]
[1742966942431,0.09581233,2056.1,2056.0,5.46107499]
[1742966942597,1.2413268,2056.1,2056.0,5.46107499]
[1742966966279,1.2413268,2056.1,2056.0,5.46481299]
[1742966966478,6.1048968,2056.1,2056.0,5.46481299]
[1742966973006,4.95938233,2056.1,2056.0,5.46481299]
[1742966973408,0.09581233,2056.1,2056.0,5.46481299]
[1742966982033,0.09581233,2056.1,2056.0,7.42250422]
[1742966982533,0.09528433,2056.1,2056.0,7.42250422]
[1742966982735,9.00863447,2056.3,2056.0,7.42250422]
[1742966983037,0.09563844,2056.2,2056.0,7.42250422]
[1742966983424,9.00863447,2056.3,2056.0,7.42250422]
[1742966983604,0.09528433,2056.1,2056.0,7.42250422]
[1742966983937,0.09541008,2056.1,2056.0,7.42250422]
[1742966984143,9.00863447,2056.3,2056.0,7.42250422]
[1742966984348,0.09576419,2056.2,2056.0,6.23281299]
[1742966984530,9.00863447,2056.3,2056.0,6.23281299]
[1742966984730,0.09576419,2056.2,2056.0,6.23281299]
[1742966984931,9.00863447,2056.3,2056.0,6.23281299]
[1742966985243,0.09576419,2056.2,2056.0,6.23281299]
[1742966985449,0.09576419,2056.2,2056.0,9.27891229]
[1742966985621,9.00863447,2056.3,2056.0,9.27891229]
[1742966985822,0.09541008,2056.1,2056.0,9.27891229]
[1742966986051,9.00863447,2056.3,2056.0,9.27891229]
[1742966986247,0.09541008,2056.1,2056.0,6.23281299]
[1742966986749,9.00863447,2056.3,2056.0,6.23281299]
[1742966986936,0.09576419,2056.2,2056.0,6.23281299]
[1742966987242,9.00863447,2056.3,2056.0,6.23281299]
[1742966987433,0.09541008,2056.1,2056.0,6.23281299]
[1742966987636,0.09541008,2056.1,2056.0,9.27890829]
[1742966987829,9.00863447,2056.3,2056.0,9.27890829]
[1742966988345,0.09576419,2056.2,2056.0,9.27890829]
[1742966988555,9.00870447,2056.3,2056.0,9.27890829]
[1742966988715,0.09576419,2056.2,2056.0,9.27890829]
[1742966989056,9.00870447,2056.3,2056.0,9.27890829]
[1742966989353,0.09541008,2056.1,2056.0,23.77890829]
[1742966989558,9.00861447,2056.3,2056.0,23.77890829]
[1742966989860,0.09541008,2056.1,2056.0,23.77890829]
[1742966990040,9.00861447,2056.3,2056.0,23.77890829]
[1742966990242,0.09541008,2056.1,2056.0,23.77890829]
[1742966990442,0.09541008,2056.1,2056.0,28.64271829]
[1742966990655,4.14551447,2056.3,2056.0,28.64271829]
[1742966990863,4.14551447,2056.3,2056.0,23.77890829]
[1742966991062,0.09576419,2056.2,2056.0,23.77890829]
[1742966991238,0.09576419,2056.2,2056.1,1.20023193]
[1742966992075,9.00861447,2056.3,2056.1,1.20023193]
[1742966992275,0.09576419,2056.2,2056.0,23.01090829]
[1742966992574,9.00861447,2056.3,2056.0,23.01090829]
[1742966992780,0.09541008,2056.1,2056.0,23.01090829]
[1742966993084,9.00861447,2056.3,2056.0,23.01090829]
[1742966993282,0.09541008,2056.1,2056.0,19.96481299]
[1742966993485,4.14551447,2056.3,2056.0,19.96481299]
[1742966993683,0.09541008,2056.1,2056.0,19.96481299]
[1742966993871,4.14551447,2056.3,2056.0,19.96481299]
[1742966994070,0.09553574,2056.1,2056.0,19.96481299]
[1742966994588,9.00864447,2056.3,2056.0,19.96481299]
[1742966994747,0.09553574,2056.1,2056.0,19.96481299]
[1742966994950,9.00864447,2056.3,2056.0,19.96481299]
[1742966995271,0.09588986,2056.2,2056.0,19.96481299]
[1742966995589,9.00864447,2056.3,2056.0,19.96481299]
[1742966995802,0.09553574,2056.1,2056.0,24.82860299]
[1742966996007,1.14551447,2056.3,2056.0,24.82860299]
[1742966996304,0.09553574,2056.1,2056.0,19.96481299]
[1742966996499,1.14551447,2056.3,2056.0,19.96481299]
[1742966996676,0.09553574,2056.1,2056.0,19.96481299]
[1742966996877,6.00861447,2056.3,2056.0,19.96481299]
[1742966997078,0.09553574,2056.1,2056.0,19.96481299]
[1742966997285,6.00861447,2056.3,2056.0,19.96481299]
[1742966997491,6.00861447,2056.3,2056.0,20.75421299]
[1742966997691,1.14551447,2056.3,2056.0,25.61801299]
[1742966997890,1.14551447,2056.3,2056.0,20.75421299]
[1742966998094,6.00864447,2056.3,2056.0,20.75421299]
[1742966998678,1.14551447,2056.3,2056.0,25.61798299]
[1742966998898,9.00849447,2056.4,2056.0,25.61798299]
[1742966999089,13.87152447,2056.4,2056.0,25.61798299]
[1742966999613,9.00849447,2056.4,2056.0,25.61798299]
[1742967000206,5.66843,2056.5,2056.1,4.86351]
[1742967000372,5.61657,2056.7,2056.3,4.86309]
[1742967000704,3.0,2056.6,2056.3,4.86309]
[1742967001310,9.00791447,2056.6,2056.2,5.65254]
[1742967001607,4.86267,2056.5,2056.2,4.1940096]
[1742967001810,9.00791447,2056.6,2056.2,4.1940096]
[1742967002316,13.87050447,2056.6,2056.2,4.1940096]
[1742967002809,13.87052447,2056.6,2056.2,4.1940096]
[1742967003014,9.00791447,2056.6,2056.2,4.1940096]
[1742967003222,9.00791447,2056.6,2056.3,1.45184546]
[1742967003587,9.00791447,2056.6,2056.3,6.91292045]
[1742967003920,6.00815447,2056.5,2056.3,6.91292045]
[1742967004407,6.00815447,2056.5,2056.3,21.41292045]
[1742967004571,1.14551447,2056.5,2056.3,21.41292045]
[1742967005311,6.00815447,2056.5,2056.3,6.91292045]
[1742967005466,6.00837447,2056.4,2056.3,5.46107499]
[1742967007312,4.86286,2056.4,2056.3,5.46107499]
[1742967008350,6.00837447,2056.4,2056.3,5.46107499]
[1742967009353,6.00837447,2056.4,2056.1,5.46107499]
[1742967009949,6.00837447,2056.4,2056.1,19.96107499]
[1742967011414,6.00837447,2056.4,2056.1,23.10753181]
[1742967015462,4.86286,2056.4,2056.1,23.10753181]
[1742967015769,6.76255447,2056.5,2056.1,23.10753181]
[1742967015916,6.76255447,2056.5,2056.1,27.97110181]
[1742967016848,11.62540447,2056.5,2056.1,23.10753181]
[1742967017263,6.76255447,2056.5,2056.1,23.10753181]
[1742967017958,6.76255447,2056.5,2056.1,8.60753181]
[1742967018361,6.00815447,2056.5,2056.1,13.47104181]
[1742967018560,4.86264,2056.5,2056.2,3.36277898]
[1742967021362,6.00815447,2056.5,2056.2,3.36277898]
[1742967021563,10.87100447,2056.5,2056.1,5.46107499]
[1742967021858,1.14551447,2056.2,2056.1,5.46107499]
[1742967022234,6.00899447,2056.2,2056.0,0.003738]
[1742967022461,1.14551447,2056.1,2056.0,0.003738]
[1742967024377,6.00908447,2056.1,2056.0,0.003738]
[1742967024933,1.14551447,2056.1,2056.0,0.003738]
[1742967025667,6.00908447,2056.1,2056.0,0.003738]
[1742967038198,4.51703816,2056.6,2056.0,0.003738]
[1742967038199,1.19072369,2056.6,2056.1,4.86342]
[1742967038492,9.00852447,2056.4,2056.1,0.7817]
[1742967038699,7.86301,2056.4,2056.1,6.24277499]
[1742967039767,6.00815447,2056.5,2056.2,4.86333]
[1742967040158,4.86264,2056.5,2056.2,4.86333]
[1742967040584,6.00797447,2056.6,2056.3,0.8319]
[1742967040771,10.87055447,2056.6,2056.3,0.8319]
[1742967040975,6.00797447,2056.6,2056.3,0.8319]
[1742967042392,10.87055447,2056.6,2056.3,0.8319]
[1742967042896,6.00797447,2056.6,2056.3,0.8319]
[1742967043114,6.00797447,2056.6,2056.3,2.74408774]
[1742967043482,4.86217,2056.7,2056.3,13.06820273]
[1742967043687,6.00768447,2056.7,2056.3,13.06820273]
[1742967049609,1.14551447,2056.6,2056.3,13.06820273]
[1742967049912,9.36492,2056.8,2056.3,12.23621273]
[1742967050096,6.00743447,2056.8,2056.4,7.02781272]
[1742967051007,3.0,2056.8,2056.4,6.20090272]
[1742967051206,3.0,2056.8,2056.5,5.68939]
[1742967051369,4.86143,2057.1,2056.5,5.68931]
[1742967051370,6.00707447,2057.0,2056.5,5.68931]
[1742967051565,6.00675447,2057.1,2056.7,0.8268]
[1742967051796,6.00675447,2057.1,2056.8,1.1150145]
[1742967056410,4.14551447,2057.1,2056.8,1.1150145]
[1742967056611,4.502,2057.2,2057.0,5.61474]
[1742967056772,4.14551447,2057.3,2057.0,0.7533]
[1742967056973,1.14551447,2057.2,2057.0,0.7533]
[1742967057214,1.14551447,2057.2,2057.0,3.36247845]
[1742967057691,6.00648447,2057.2,2057.0,3.36247845]
[1742967058085,6.00672447,2057.1,2057.0,3.36247845]
[1742967058284,6.00672447,2057.1,2056.8,1.8683145]
[1742967058486,6.00672447,2057.1,2056.8,16.3683145]
[1742967058784,6.00672447,2057.1,2056.8,1.8683145]
[1742967059012,1.14551447,2057.1,2056.8,1.8683145]
[1742967059910,4.14551447,2057.3,2056.8,1.8683145]
[1742967060112,1.14551447,2057.2,2056.9,6.6129329]
[1742967061013,1.14551447,2057.2,2056.9,1.7513829]
[1742967061173,6.00657447,2057.2,2056.9,1.7513829]
[1742967062103,6.00657447,2057.2,2056.9,7.21245789]
[1742967062715,1.14551447,2057.1,2056.9,7.21245789]
[1742967062918,6.00675447,2057.1,2056.9,7.21245789]
[1742967066008,6.00659447,2057.2,2056.9,7.21245789]
[1742967067318,10.86776447,2057.2,2056.9,7.21245789]
[1742967067625,6.00659447,2057.2,2056.9,7.21245789]
[1742967068195,6.00659447,2057.2,2056.9,5.46107499]
[1742967072508,9.00626447,2057.3,2057.0,0.7641]
[1742967072682,7.86075,2057.3,2057.0,0.7641]
[1742967073586,9.00626447,2057.3,2057.0,0.7641]
[1742967074322,7.8608,2057.3,2057.0,0.7641]
[1742967074525,9.00631447,2057.3,2057.0,3.5488344]
[1742967075093,7.8608,2057.3,2057.0,3.5488344]
[1742967075934,3.0,2057.3,2057.0,3.5488344]
[1742967076097,3.0,2057.3,2057.0,5.62553]
[1742967076922,6.00534447,2057.7,2057.3,4.86063]
[1742967077124,10.86534447,2057.7,2057.3,4.86063]
[1742967077334,4.85983,2057.7,2057.3,4.86073]
[1742967077638,9.71985,2057.7,2057.3,1.70922195]
[1742967077834,10.86583447,2057.6,2057.3,1.70922195]
[1742967078004,10.86583447,2057.6,2057.3,7.17029694]
[1742967078005,6.00566447,2057.6,2057.3,7.17029694]
[1742967078340,4.86028,2057.5,2057.3,7.17029694]
[1742967079236,6.00579447,2057.5,2057.3,7.17029694]
[1742967080340,4.86028,2057.5,2057.3,7.17029694]
[1742967081239,6.00579447,2057.5,2057.3,7.17029694]
[1742967081450,4.8605,2057.4,2057.3,5.46107499]
[1742967081609,6.00579447,2057.5,2057.3,5.46107499]
[1742967082143,1.14551447,2057.5,2057.3,5.46107499]
[1742967082327,6.00582447,2057.5,2057.3,5.46107499]
[1742967082646,4.86031,2057.5,2057.3,5.46107499]
[1742967083934,6.00555447,2057.6,2057.3,5.46107499]
[1742967084127,4.86004,2057.6,2057.3,10.32178499]
[1742967084327,4.86004,2057.6,2057.3,5.46107499]
[1742967086537,4.90341447,2057.8,2057.5,4.86013]
[1742967086737,7.85965,2057.8,2057.4,10.47889]
[1742967086941,7.85965,2057.8,2057.4,5.61852]
[1742967088008,9.00516447,2057.8,2057.4,5.61852]
[1742967088544,9.00516447,2057.8,2057.5,5.46107499]
[1742967089748,7.85965,2057.8,2057.5,5.46107499]
[1742967094247,9.00516447,2057.8,2057.5,5.46107499]
[1742967096247,6.00531447,2057.7,2057.5,5.46107499]
[1742967098315,1.14551447,2057.7,2057.5,5.46107499]
[1742967098518,6.00532447,2057.7,2057.5,5.46107499]
[1742967100138,10.86523447,2057.7,2057.5,5.46107499]
[1742967101068,6.00532447,2057.7,2057.5,5.46107499]
[1742967101932,4.86003,2057.6,2057.5,5.46107499]
[1742967102369,6.00532447,2057.7,2057.5,5.46107499]
[1742967105777,4.86003,2057.6,2057.5,5.46107499]
[1742967105990,6.00537447,2057.7,2057.5,5.46107499]
[1742967106475,10.86535447,2057.7,2057.5,5.46107499]
[1742967106877,6.00537447,2057.7,2057.5,5.46107499]
[1742967107891,4.86003,2057.6,2057.5,5.46107499]
[1742967108598,6.00536447,2057.7,2057.5,5.46107499]
[1742967108950,10.86534447,2057.7,2057.5,5.46107499]
[1742967109167,4.85985,2057.7,2057.5,5.46107499]
[1742967112193,0.8065,2058.2,2057.7,4.85967]
[1742967112415,4.85896,2058.1,2057.7,6.60658946]
[1742967112563,4.85896,2058.1,2057.7,5.46107499]
[1742967112770,4.85896,2058.1,2057.8,0.7567]
[1742967114016,6.00447447,2058.1,2057.8,0.7567]
[1742967114179,4.85909,2058.0,2057.8,0.7567]
[1742967114587,6.00441447,2058.1,2057.8,0.7567]
[1742967114881,4.8589,2058.1,2057.8,0.7567]
[1742967115500,6.00441447,2058.1,2057.8,0.7567]
[1742967115815,4.8589,2058.1,2057.8,0.7567]
[1742967116023,7.8589,2058.1,2057.8,3.8004395]
[1742967116685,3.0,2058.1,2057.8,8.6599695]
[1742967117000,6.00417447,2058.2,2057.9,5.46107499]
[1742967118301,6.00391447,2058.3,2057.9,19.96107499]
[1742967118605,6.00391447,2058.3,2058.0,3.34805045]
[1742967118799,1.14551447,2058.2,2058.0,3.34805045]
[1742967119709,6.00424447,2058.2,2058.0,3.34805045]
[1742967121309,6.00436447,2058.1,2057.9,5.46107499]
[1742967121602,1.14551447,2058.0,2057.9,5.46107499]
[1742967124812,6.00436447,2058.1,2057.9,5.46107499]
[1742967129229,1.14551447,2058.1,2057.9,5.46107499]
[1742967129919,4.85871,2058.2,2057.9,5.46107499]
[1742967129920,1.14551447,2058.2,2057.9,5.46107499]
[1742967130088,1.14551447,2058.2,2057.9,8.50476949]
[1742967130284,1.14551447,2058.2,2057.9,13.36408949]
[1742967130489,1.14551447,2058.2,2057.9,8.50476949]
[1742967131186,1.14551447,2058.2,2057.9,5.46107499]
[1742967132585,1.14551447,2058.3,2057.9,5.46107499]
[1742967132790,1.14551447,2058.3,2058.0,20.18385]
[1742967133199,1.14551447,2058.3,2058.0,15.325]
[1742967133403,1.14551447,2058.2,2058.0,15.325]
[1742967133600,1.14551447,2058.2,2058.0,17.8895395]
[1742967133794,1.14551447,2058.1,2058.0,17.8895395]
[1742967133994,1.14551447,2058.1,2058.0,3.3895395]
[1742967134216,1.14551447,2058.2,2058.0,3.3895395]
[1742967135391,1.14551447,2058.3,2058.0,8.2484495]
[1742967135616,1.14551447,2058.3,2058.1,3.30688345]
[1742967137124,1.14551447,2058.3,2058.0,5.68391]
[1742967137713,4.85772,2058.6,2058.1,4.85881]
[1742967137915,1.14551447,2058.5,2058.2,0.825]
[1742967138152,1.14551447,2058.6,2058.3,5.46107499]
[1742967138304,4.14551447,2058.6,2058.3,5.46107499]
[1742967138520,4.14551447,2058.6,2058.3,6.57556549]
[1742967139027,4.14551447,2058.6,2058.3,11.43387549]
[1742967139208,4.8572,2058.8,2058.3,11.43387549]
[1742967139525,1.14551447,2058.7,2058.3,11.43387549]
[1742967139724,1.14551447,2058.7,2058.4,4.85812]
[1742967139935,4.8572,2058.8,2058.4,6.56981955]
[1742967140145,4.14551447,2058.8,2058.5,5.46107499]
[1742967140951,1.14551447,2058.7,2058.5,5.46107499]
[1742967141097,4.14551447,2058.8,2058.5,5.46107499]
[1742967141738,3.0,2058.8,2058.5,10.31896499]
[1742967141948,0.02,2058.9,2058.6,2.73556645]
[1742967142104,1.16551447,2058.9,2058.6,2.73556645]
[1742967142805,1.14551447,2058.8,2058.6,2.73556645]
[1742967144243,1.14551447,2058.8,2058.6,8.19664144]
[1742967144847,1.16551447,2058.9,2058.6,8.19664144]
[1742967146343,1.14551447,2058.8,2058.6,8.19664144]
[1742967146516,1.14551447,2058.8,2058.6,5.46107499]
[1742967146718,0.02,2058.9,2058.6,5.46107499]
[1742967147252,1.16551447,2058.9,2058.7,0.7553]
[1742967148329,1.14551447,2058.8,2058.7,0.7553]
[1742967148535,1.16551447,2058.9,2058.7,0.7553]
[1742967148838,1.16551447,2058.9,2058.8,0.6216375]
[1742967149865,0.02,2058.9,2058.8,6.08271249]
[1742967150272,0.02,2058.9,2058.8,10.93990249]
[1742967150952,0.02,2058.9,2058.8,11.69520249]
[1742967151841,0.02,2058.9,2058.8,12.84071696]
[1742967152574,0.02,2058.9,2058.8,11.69520249]
[1742967155373,0.02,2058.9,2058.8,28.23323213]
[1742967156732,0.02,2058.9,2058.8,26.19520249]
[1742967157070,0.02,2058.9,2058.8,11.69520249]
[1742967162488,0.02,2058.9,2058.8,6.83801249]
[1742967164395,0.02,2058.9,2058.8,21.33801249]
[1742967166998,0.02,2058.9,2058.8,6.83801249]
[1742967169531,0.02,2058.9,2058.8,11.69520249]
[1742967170886,0.02,2058.9,2058.8,26.19520249]
[1742967172187,0.02,2058.9,2058.8,10.93990249]
[1742967172389,0.02,2058.9,2058.8,6.08271249]
[1742967174538,0.02,2058.9,2058.8,10.93990249]
[1742967175369,0.02,2058.9,2058.8,6.08271249]
[1742967177858,0.02,2058.9,2058.8,6.86331249]
[1742967178160,0.02,2058.9,2058.8,8.00480816]
[1742967178773,0.02,2058.9,2058.8,8.55480816]
[1742967178962,0.02,2058.9,2058.8,23.05480816]
[1742967181064,0.02,2058.9,2058.8,23.95056587]
[1742967181251,0.02,2058.9,2058.8,26.95056587]
[1742967182373,0.02,2058.9,2058.8,31.80775587]
[1742967182930,0.078136,2059.8,2058.8,31.80775587]
[1742967182931,0.078136,2059.8,2059.0,5.40672]
[1742967183147,0.078136,2059.8,2059.7,4.85507]
[1742967186042,0.078136,2059.8,2059.7,5.22090141]
[1742967186253,0.078136,2059.8,2059.7,6.00150141]
[1742967186459,0.078136,2059.8,2059.7,11.4425764]
[1742967189243,0.078136,2059.8,2059.7,25.9425764]
[1742967189588,0.078136,2059.8,2059.7,32.29392752]
[1742967190856,0.078136,2059.8,2059.7,30.25667414]
[1742967198183,0.078136,2059.8,2059.7,25.1619764]
[1742967198383,0.902736,2059.8,2059.7,5.44107499]
[1742967200690,0.078136,2059.8,2059.7,10.29614499]
[1742967211168,0.078136,2059.8,2059.7,12.33339837]
[1742967214503,0.078136,2059.8,2059.7,13.28560333]
[1742967214710,0.078136,2059.8,2059.7,16.37854266]
[1742967222624,6e-06,2059.8,2059.7,16.37854266]
[1742967225219,6e-06,2059.8,2059.7,16.92854266]
[1742967226425,1e-05,2060.1,2060.0,5.64056]
[1742967226620,1e-05,2060.1,2060.0,12.16981338]
[1742967226791,1e-05,2060.1,2060.0,14.41636862]
[1742967227123,1e-05,2060.1,2060.0,28.91636862]
[1742967228425,1e-05,2060.1,2060.0,23.27580862]
[1742967228608,1e-05,2060.1,2060.0,28.13016862]
[1742967229215,1e-05,2060.1,2060.0,29.28863224]
[1742967229412,1e-05,2060.1,2060.0,35.27970123]
[1742967229615,1e-05,2060.1,2060.0,40.31695461]
[1742967230828,0.55,2060.3,2060.2,8.64009]
[1742967231025,0.55,2060.3,2060.2,15.46845108]
[1742967231391,0.55,2060.3,2060.2,29.96845108]
[1742967232629,0.55,2060.3,2060.2,30.51845108]
[1742967232807,0.55,2060.3,2060.2,35.01845108]
[1742967235232,0.02,2060.9,2060.7,0.7884]
[1742967235529,0.02,2060.9,2060.8,4.85401589]
[1742967236032,0.02,2060.9,2060.8,19.35401589]
[1742967237129,0.02,2060.9,2060.8,19.72704595]
[1742967239232,0.02,2060.9,2060.8,18.84106899]
[1742967239430,0.02,2060.9,2060.8,4.34106899]
[1742967240033,0.02,2060.9,2060.8,6.37832237]
[1742967243122,0.02,2060.9,2060.8,6.75019186]
[1742967243322,0.02,2060.9,2060.8,21.25019186]
[1742967243743,0.02,2060.9,2060.8,19.21293848]
[1742967244345,0.02,2060.9,2060.8,18.84106899]
[1742967244529,0.7909,2060.9,2060.8,18.84106899]
[1742967244735,0.7909,2060.9,2060.8,4.34106899]
[1742967245234,0.7909,2060.9,2060.8,18.84106899]
[1742967245631,0.7909,2060.9,2060.8,4.34106899]
[1742967249844,0.7909,2060.9,2060.8,18.84106899]
[1742967252330,0.7909,2060.9,2060.8,4.34106899]
[1742967253636,2.03725338,2061.1,2060.8,4.34106899]
[1742967255858,0.50372534,2061.0,2060.8,4.34106899]
[1742967256747,0.7767,2060.9,2060.8,4.34106899]
[1742967257259,0.7767,2060.9,2060.8,18.84106899]
[1742967257459,0.7767,2060.9,2060.8,4.34106899]
[1742967258161,0.7767,2060.9,2060.8,18.84106899]
[1742967261174,0.7767,2060.9,2060.8,4.34106899]
[1742967261682,0.7767,2061.1,2060.8,18.84106899]
[1742967261882,1.35809534,2061.1,2060.8,18.84106899]
[1742967262236,0.7767,2061.1,2060.8,18.84106899]
[1742967264492,0.7767,2061.1,2060.8,4.34106899]
[1742967264963,0.7767,2061.1,2060.8,18.84106899]
[1742967267295,0.7723,2061.4,2060.9,0.826]
[1742967267465,0.7723,2061.4,2061.0,4.34106899]
[1742967270317,0.7723,2061.4,2061.0,5.31889739]
[1742967272070,0.7723,2061.4,2061.0,19.81889739]
[1742967272503,0.7723,2061.4,2061.0,5.31889739]
[1742967272798,2.80955338,2061.4,2061.0,4.34106899]
[1742967274797,7.66072338,2061.4,2061.0,4.34106899]
[1742967276477,2.80955338,2061.4,2061.0,4.34106899]
[1742967277162,7.66062338,2061.4,2061.0,4.34106899]
[1742967277490,9.45490582,2061.4,2061.0,4.34106899]
[1742967277684,5.40138,2061.3,2061.0,4.34106899]
[1742967278000,0.7723,2061.2,2061.0,4.34106899]
[1742967278701,7.66119338,2061.2,2061.0,4.34106899]
[1742967279061,7.66119338,2061.2,2060.8,14.5]
[1742967279899,5.40192,2061.1,2060.7,0.826]
[1742967280104,0.7723,2061.2,2060.7,0.826]
[1742967280624,0.7723,2061.2,2060.8,14.5]
[1742967280777,0.55,2061.2,2060.8,14.5]
[1742967281443,5.40156,2061.2,2060.8,14.5]
[1742967282414,7.66502338,2061.4,2060.8,14.5]
[1742967282415,5.40132,2061.3,2060.8,14.5]
[1742967282712,6.74508644,2061.3,2060.8,14.5]
[1742967284117,11.59659644,2061.3,2060.8,14.5]
[1742967284303,11.59662644,2061.3,2060.8,14.5]
[1742967284508,6.74508644,2061.3,2060.8,14.5]
[1742967286221,11.59660644,2061.3,2060.8,14.5]
[1742967286517,0.7767,2061.2,2060.8,14.5]
[1742967286924,5.62824,2061.2,2060.8,14.5]
[1742967288406,0.7767,2061.2,2060.8,14.5]
[1742967288606,5.62825,2061.2,2060.8,14.5]
[1742967289036,0.7767,2061.2,2060.8,14.5]
[1742967289839,5.62826,2061.2,2060.8,14.5]
[1742967291708,6.93495234,2061.2,2060.7,0.826]
[1742967292012,6.93495234,2061.2,2060.7,1.78450464]
[1742967292211,6.93495234,2061.2,2060.7,16.28450464]
[1742967292519,5.62826,2061.2,2060.7,15.326]
[1742967293140,0.55,2061.1,2060.7,15.326]
[1742967294016,9.72922103,2061.5,2060.7,15.326]
[1742967294017,6.17787,2061.4,2060.7,15.326]
[1742967295032,0.55,2061.2,2060.7,16.46508204]
[1742967295207,0.55,2061.2,2060.7,15.326]
[1742967295407,0.55,2061.2,2060.8,2.0806151]
[1742967295808,0.55,2061.2,2060.7,0.826]
[1742967296012,6.76693204,2061.4,2060.7,1.96508204]
[1742967296245,0.55,2061.3,2060.7,1.96508204]
[1742967297023,0.55,2061.3,2060.7,0.826]
[1742967297727,0.55,2061.3,2060.7,5.332]
[1742967297909,0.55,2061.3,2060.8,1.26888206]
[1742967299543,0.55,2061.3,2060.9,4.34106899]
[1742967300953,3.0,2061.2,2060.9,4.34106899]
[1742967301254,5.40131,2061.3,2060.9,4.34106899]
[1742967301255,0.55,2061.3,2060.9,4.34106899]
[1742967301426,3.0,2061.2,2060.9,4.34106899]
[1742967301951,3.7767,2061.2,2060.9,4.34106899]
[1742967302156,0.55,2061.1,2060.9,4.34106899]
[1742967306869,0.54884018,2061.1,2060.9,4.34106899]
[1742967307226,0.54884018,2061.1,2060.9,4.85689706]
[1742967307426,0.7767,2061.0,2060.9,4.34106899]
[1742967308860,6.17871,2061.0,2060.9,4.34106899]
[1742967309068,6.17871,2061.0,2060.5,4.34106899]
[1742967309069,5.40229,2060.9,2060.5,4.34106899]
[1742967309273,3.55,2060.7,2060.3,4.34106899]
[1742967310025,2.03397284,2060.4,2060.0,6.58762423]
[1742967310333,3.55,2060.5,2060.0,4.34106899]
[1742967310533,3.55,2060.5,2060.1,0.8063]
[1742967311771,4.85211,2061.0,2060.2,0.8548349]
[1742967311945,0.55,2060.8,2060.3,4.34106899]
[1742967312143,0.55,2060.8,2060.4,0.5147369]
[1742967312474,3.0,2060.9,2060.5,0.8063]
[1742967313179,0.55,2060.8,2060.5,0.8063]
[1742967316755,5.40248,2060.8,2060.5,0.8063]
[1742967317083,4.85272,2060.7,2060.3,4.34106899]
[1742967317247,6.88669284,2060.7,2060.3,4.34106899]
[1742967318395,6.17918,2060.8,2060.4,0.8063]
[1742967318396,0.55,2060.8,2060.4,0.8063]
[1742967318699,8.40248,2060.8,2060.4,0.8063]
[1742967321189,4.85274,2060.7,2060.4,0.8063]
[1742967322780,4.85274,2060.7,2060.3,4.34106899]
[1742967322986,6.88671284,2060.7,2060.3,4.34106899]
[1742967323161,5.40306,2060.6,2060.3,4.34106899]
[1742967323358,0.55,2060.4,2060.3,4.34106899]
[1742967323564,0.55,2060.4,2060.1,4.34106899]
[1742967323996,5.40354,2060.4,2060.1,4.34106899]
[1742967324496,3.55,2060.4,2060.1,4.34106899]
[1742967324790,8.40349,2060.4,2060.1,4.34106899]
[1742967324990,8.40349,2060.4,2060.0,0.8063]
[1742967327165,3.55,2060.4,2060.0,0.8063]
[1742967327373,3.55,2060.4,2060.0,1.41787585]
[1742967327374,0.55,2060.4,2060.0,1.41787585]
[1742967327570,3.0,2060.7,2060.1,0.765]
[1742967328007,0.55,2060.6,2060.1,0.765]
[1742967328801,3.0,2060.7,2060.1,0.765]
[1742967329001,0.55,2060.6,2060.2,4.34106899]
[1742967329215,0.55,2060.6,2060.3,0.5106069]
[1742967331318,2.58397284,2060.6,2060.2,4.34106899]
[1742967331517,0.30508025,2060.5,2060.2,4.34106899]
[1742967337232,0.7746,2060.4,2060.2,4.34106899]
[1742967337526,0.30349581,2060.3,2060.2,4.34106899]
[1742967337724,0.55,2060.2,2059.9,6.07445851]
[1742967337931,0.55,2060.2,2059.9,7.13430436]
[1742967338137,0.30263209,2060.1,2059.9,7.13430436]
[1742967338692,0.30263209,2060.1,2059.9,6.07445851]
[1742967339044,0.30263209,2060.1,2059.9,5.30945851]
[1742967341536,5.15679209,2060.1,2059.9,5.30945851]
[1742967341738,0.30263209,2060.1,2059.9,5.30945851]
[1742967345047,2.03397284,2060.0,2059.9,4.34106899]
[1742967345349,0.55,2059.9,2059.6,4.34106899]
[1742967345650,0.29906152,2059.8,2059.6,4.34106899]
[1742967347312,0.29906152,2059.8,2059.7,14.5]
[1742967352849,7.85372,2060.3,2059.7,14.5]
[1742967353012,0.30058741,2060.2,2059.8,0.7697]
[1742967353213,0.55,2060.2,2059.9,1.52697]
[1742967353517,0.29961475,2060.1,2059.8,0.7697]
[1742967353836,0.29961475,2060.1,2060.0,14.5]
[1742967354647,0.55,2060.3,2060.0,15.3307]
[1742967354815,0.2998421,2060.1,2060.0,15.3307]
[1742967355137,3.0,2060.4,2060.0,15.3307]
[1742967355339,0.2998421,2060.1,2060.0,16.86377]
[1742967355543,0.55,2060.4,2060.0,16.86377]